bitfinex/quotes_ETHUSD_20241203
["timestamp","ask_amount","ask_price","bid_price","bid_amount"]
[1733253399426,0.26019014,3558.3,3557.6,2.81083]
[1733253399596,0.26019014,3558.2,3557.6,2.81083]
[1733253399793,0.55,3558.4,3557.6,2.81083]
[1733253399999,0.55,3558.2,3557.6,2.81083]
[1733253400308,0.26028333,3558.1,3557.4,3.7430878]
[1733253400523,0.26028333,3558.1,3557.5,2.81094]
[1733253400814,0.26028333,3558.1,3557.4,0.9320778]
[1733253400815,0.07542214,3558.0,3557.7,2.81075]
[1733253401021,0.07542214,3558.0,3557.9,2.81064]
[1733253401181,0.07542214,3558.0,3557.9,4.170386]
[1733253402035,0.41666952,3559.0,3557.9,4.170386]
[1733253402036,0.6770976,3558.9,3558.0,2.81056]
[1733253402207,0.6770976,3558.9,3557.9,1.359746]
[1733253402208,0.75051014,3558.8,3557.9,0.7976]
[1733253402407,1.2270976,3558.7,3557.6,2.81081]
[1733253402716,3.59839121,3559.0,3557.5,0.7976]
[1733253402717,0.55,3558.5,3557.5,0.7976]
[1733253402920,0.55,3558.3,3557.5,3.60849]
[1733253403135,0.26042808,3558.2,3557.6,2.81088]
[1733253403309,0.41678913,3558.9,3558.2,0.753]
[1733253403621,0.75089695,3558.8,3558.2,3.56334]
[1733253403782,0.67730624,3558.7,3558.2,3.56334]
[1733253403981,0.67730624,3558.6,3558.2,3.56334]
[1733253404203,0.33410557,3558.5,3558.3,2.81029]
[1733253404404,0.07360317,3558.5,3558.3,2.81029]
[1733253404607,0.07360317,3558.5,3557.4,0.1548778]
[1733253404825,0.29001757,3559.1,3557.5,0.753]
[1733253404826,3.62072938,3558.4,3557.5,0.753]
[1733253405125,0.55,3558.2,3557.4,0.1548778]
[1733253405280,0.26046938,3558.1,3557.4,0.1548778]
[1733253405484,0.81046938,3558.0,3557.4,0.1548778]
[1733253405788,0.55,3558.0,3557.4,0.1548778]
[1733253406092,0.55,3557.8,3557.4,0.1548778]
[1733253406312,0.55,3557.5,3557.4,0.1548778]
[1733253406477,3.62141651,3557.5,3557.4,0.1548778]
[1733253407056,3.69484678,3557.5,3557.4,0.1548778]
[1733253407643,4.11158631,3557.5,3557.4,0.1548778]
[1733253407849,0.88388678,3557.5,3557.4,0.1548778]
[1733253410622,0.8839067,3557.5,3557.4,0.1548778]
[1733253412917,3.6948667,3557.5,3557.4,0.1548778]
[1733253413116,4.11166012,3557.5,3557.4,0.1548778]
[1733253413860,1.30070012,3557.5,3557.4,0.1548778]
[1733253414356,1.30070592,3557.5,3557.4,0.1548778]
[1733253414732,0.8839209,3557.5,3557.4,0.1548778]
[1733253414956,1.30070592,3557.5,3557.4,0.1548778]
[1733253415168,4.11166592,3557.5,3557.4,0.1548778]
[1733253415318,1.30070592,3557.5,3557.4,0.1548778]
[1733253415518,0.8839209,3557.5,3557.4,0.1548778]
[1733253415717,1.30068219,3557.5,3557.4,0.1548778]
[1733253416015,0.8839209,3557.5,3557.4,0.1548778]
[1733253416228,0.88391231,3557.5,3557.4,0.1548778]
[1733253417292,4.11161667,3557.5,3557.4,0.1548778]
[1733253417691,3.43439027,3557.5,3557.4,0.1548778]
[1733253417858,4.11158094,3557.5,3557.4,0.1548778]
[1733253418392,1.30062094,3557.5,3557.4,0.1548778]
[1733253418608,0.88388822,3557.5,3557.4,0.1548778]
[1733253419384,0.33388822,3557.5,3557.4,0.1548778]
[1733253419584,0.33388822,3557.5,3557.4,0.9357778]
[1733253419899,0.07343027,3557.5,3557.4,0.9357778]
[1733253420269,8.88,3557.7,3557.4,0.9357778]
[1733253420459,0.07319967,3557.6,3557.4,0.9357778]
[1733253420807,0.07319967,3557.6,3557.4,0.1548778]
[1733253420808,0.55,3557.5,3557.4,0.1548778]
[1733253421303,0.62324847,3557.5,3557.4,0.1548778]
[1733253421886,0.55,3557.8,3557.4,0.1548778]
[1733253422076,0.55,3557.6,3557.4,0.1548778]
[1733253422398,0.55,3557.8,3557.4,0.1548778]
[1733253422606,0.55,3557.6,3557.4,0.1548778]
[1733253422965,0.55,3557.8,3557.4,0.1548778]
[1733253423162,0.55,3557.5,3557.4,0.1548778]
[1733253423389,0.07331056,3557.5,3557.4,0.1548778]
[1733253423591,0.81043044,3557.5,3557.4,0.1548778]
[1733253423974,0.883741,3557.5,3557.4,0.1548778]
[1733253424723,1.3004018,3557.5,3557.4,0.1548778]
[1733253425020,0.883741,3557.5,3557.4,0.1548778]
[1733253425320,1.30039278,3557.5,3557.4,0.1548778]
[1733253425560,0.883741,3557.5,3557.4,0.1548778]
[1733253425712,1.30040489,3557.5,3557.4,0.1548778]
[1733253426324,4.11136489,3557.5,3557.4,0.1548778]
[1733253426908,4.11137512,3557.5,3557.4,0.1548778]
[1733253433366,15.99137512,3557.5,3557.4,0.1548778]
[1733253433511,16.42485591,3557.5,3557.4,0.1548778]
[1733253433859,12.99103351,3557.5,3557.4,0.1548778]
[1733253434238,12.31427056,3557.5,3557.4,0.1548778]
[1733253434548,15.99150011,3557.5,3557.0,0.2]
[1733253434718,9.21315868,3557.1,3557.0,0.2]
[1733253434918,3.36199,3556.2,3556.1,0.005]
[1733253435107,3.6224629,3556.2,3556.1,0.005]
[1733253435508,9.96379282,3556.2,3556.1,0.005]
[1733253437556,10.72574971,3556.2,3556.1,0.005]
[1733253438827,19.60574971,3556.2,3556.1,0.005]
[1733253439164,15.99190414,3556.2,3556.1,0.005]
[1733253439348,15.57514749,3556.2,3556.1,0.005]
[1733253440035,15.5744118,3556.2,3556.1,0.005]
[1733253440827,19.18825737,3556.2,3556.1,0.005]
[1733253441947,9.2124218,3556.2,3556.1,0.005]
[1733253442281,8.95268459,3556.2,3556.1,0.005]
[1733253442566,8.95268459,3556.2,3556.1,0.365692]
[1733253442771,8.95268459,3556.2,3556.1,0.005]
[1733253442941,0.07268459,3556.2,3556.1,2.81706]
[1733253443129,0.07268459,3556.2,3556.1,3.64246]
[1733253443466,3.07096771,3557.1,3556.1,3.64246]
[1733253443673,0.06710578,3556.2,3556.1,3.64246]
[1733253443866,0.25966771,3556.9,3556.1,4.007206]
[1733253444160,0.41546834,3557.2,3556.1,4.007206]
[1733253444161,0.06710578,3556.2,3556.1,4.007206]
[1733253444326,0.25963305,3557.1,3556.3,2.81183]
[1733253444530,0.25963305,3557.0,3556.3,2.81183]
[1733253444725,0.06742191,3557.0,3556.7,0.7679]
[1733253445176,0.25961006,3557.4,3556.7,0.7679]
[1733253445376,0.70647208,3557.6,3556.7,0.7679]
[1733253445377,0.06747088,3556.9,3556.8,2.81149]
[1733253445666,0.25962072,3557.5,3557.0,2.81133]
[1733253445884,0.29107051,3557.6,3556.8,2.81151]
[1733253446172,0.29107051,3557.6,3557.1,2.81126]
[1733253446173,0.06315084,3557.4,3557.1,2.81126]
[1733253446374,0.25960974,3557.8,3557.4,2.81102]
[1733253446574,0.41540157,3558.1,3557.6,2.81087]
[1733253446919,0.25961371,3558.0,3557.4,2.81101]
[1733253447027,0.25961371,3557.9,3557.4,2.81101]
[1733253447224,0.06335557,3557.9,3557.4,2.81101]
[1733253447464,0.25959238,3558.1,3557.3,0.7707]
[1733253447671,0.06335557,3557.8,3557.3,0.7707]
[1733253447837,0.55,3557.9,3557.3,0.7707]
[1733253448042,0.06353354,3557.7,3557.3,0.7707]
[1733253448261,0.55,3557.6,3557.3,0.7707]
[1733253448427,0.61353354,3557.6,3557.3,0.7707]
[1733253451691,0.61353354,3557.6,3556.1,0.369746]
[1733253451692,0.61353354,3557.6,3556.2,0.7529]
[1733253451862,0.61353354,3557.6,3556.8,0.7529]
[1733253452369,0.55,3557.4,3556.8,0.7529]
[1733253452890,0.55,3557.2,3556.8,0.7529]
[1733253453075,2.81137,3557.0,3556.1,0.7763]
[1733253453276,0.55,3556.9,3556.1,0.7763]
[1733253453492,3.36145,3556.9,3556.1,0.7763]
[1733253453794,0.55,3556.7,3556.1,0.7763]
[1733253454107,0.55,3557.0,3556.1,1.135644]
[1733253454257,0.55,3556.5,3556.1,0.7763]
[1733253454462,0.55,3556.5,3556.2,2.81197]
[1733253455070,0.25979508,3557.2,3556.1,0.7763]
[1733253455376,8.88,3557.3,3556.3,2.81185]
[1733253455377,0.06102119,3556.4,3556.3,2.81185]
[1733253455593,8.88,3557.3,3556.5,2.81169]
[1733253455594,0.55,3557.2,3556.5,2.81169]
[1733253455758,0.55,3557.2,3556.3,0.7851]
[1733253455962,0.55,3557.0,3556.5,2.81173]
[1733253456158,0.55,3557.0,3556.4,0.8212]
[1733253456363,0.06102119,3557.1,3556.4,0.8212]
[1733253456364,0.55,3556.8,3556.4,0.8212]
[1733253456932,0.55,3556.6,3556.4,0.8212]
[1733253457259,0.61070846,3556.5,3556.4,0.8212]
[1733253457779,0.55,3556.4,3556.1,0.8281]
[1733253458206,0.06070846,3556.3,3556.1,0.8281]
[1733253458406,0.55,3556.7,3556.1,0.8281]
[1733253458593,0.06070846,3556.6,3556.1,0.8281]
[1733253458809,0.55,3556.5,3556.1,0.8281]
[1733253459322,0.55,3556.3,3556.1,0.8281]
[1733253459483,0.06070846,3556.4,3556.1,0.8281]
[1733253459822,0.06061946,3556.3,3556.1,3.64014]
[1733253460023,0.25985031,3556.9,3556.1,3.64014]
[1733253460183,0.55,3556.8,3556.1,0.8281]
[1733253460385,0.61061946,3556.8,3556.1,0.8281]
[1733253462083,0.61061946,3556.8,3556.2,2.81198]
[1733253462810,0.61061946,3556.8,3556.1,0.8281]
[1733253463013,0.06061946,3556.8,3556.6,2.81163]
[1733253463223,0.29132789,3557.1,3556.7,0.766]
[1733253463800,8.88,3557.4,3556.7,0.766]
[1733253463801,0.25981717,3557.3,3556.7,0.766]
[1733253464001,8.88,3557.4,3556.8,0.02811492]
[1733253464208,0.2904103,3557.8,3556.7,3.57754]
[1733253464537,0.25979866,3557.7,3556.9,2.81136]
[1733253464693,0.25979866,3557.6,3556.9,2.81136]
[1733253465029,0.2904103,3557.8,3556.9,2.81136]
[1733253465203,3.1012003,3557.8,3556.8,2.81151]
[1733253465535,0.3180523,3557.7,3556.8,2.81151]
[1733253465742,0.80978962,3557.6,3556.8,2.81151]
[1733253465916,0.25978962,3557.5,3556.8,2.81151]
[1733253466118,0.05840081,3557.5,3556.8,2.81151]
[1733253467002,0.05840081,3557.5,3556.9,2.81143]
[1733253467553,0.05840081,3557.5,3556.7,1.123754]
[1733253467699,0.05840081,3557.5,3557.4,3.62804]
[1733253467905,0.2904103,3557.8,3557.5,2.81094]
[1733253468148,3.24323084,3558.6,3557.4,0.817]
[1733253468149,0.41567786,3558.2,3557.4,0.817]
[1733253468303,0.26000666,3558.1,3557.4,0.817]
[1733253468498,0.26000364,3558.0,3557.4,3.62802]
[1733253468815,0.05676611,3557.9,3557.6,2.81087]
[1733253469013,0.70636978,3558.4,3557.7,2.81077]
[1733253469206,0.05694874,3557.8,3557.7,2.81077]
[1733253469405,0.26001031,3558.2,3557.8,3.62479]
[1733253469727,3.2432594,3558.9,3557.8,3.62479]
[1733253469728,0.70637022,3558.8,3557.8,0.8141]
[1733253469928,0.67605018,3558.7,3557.8,0.8141]
[1733253470140,2.81026,3558.4,3557.8,0.8141]
[1733253470302,3.48640018,3558.3,3557.8,0.8141]
[1733253470505,0.26004436,3558.2,3557.8,0.8141]
[1733253470814,0.26004436,3558.1,3557.8,0.8141]
[1733253471030,0.55,3558.1,3557.8,0.8141]
[1733253471228,0.31360194,3558.0,3557.8,0.8141]
[1733253471405,0.05344169,3558.0,3557.8,0.8141]
[1733253471736,0.96600582,3558.4,3557.9,2.81064]
[1733253471737,0.26016875,3558.3,3557.9,2.81064]
[1733253471952,0.96600582,3558.6,3557.8,0.8141]
[1733253472149,0.26016658,3558.5,3557.8,0.8141]
[1733253472461,0.81016658,3558.4,3557.9,2.81057]
[1733253472605,0.26016658,3558.3,3557.9,2.81057]
[1733253472803,0.55,3558.5,3557.9,2.81057]
[1733253473145,0.55,3558.3,3557.9,2.81057]
[1733253473359,0.2601646,3558.2,3558.0,2.81051]
[1733253473543,0.2903644,3558.8,3558.0,2.81051]
[1733253473544,0.41600582,3558.7,3558.0,2.81051]
[1733253473852,0.2903644,3558.8,3557.8,0.8141]
[1733253473853,0.67613522,3558.6,3557.8,0.8141]
[1733253474054,0.2601294,3558.5,3558.4,3.64037]
[1733253474458,0.26010147,3559.0,3558.5,2.81017]
[1733253474660,0.26010147,3558.9,3558.8,2.80993]
[1733253474826,0.41600582,3559.5,3558.8,2.80993]
[1733253474827,0.41600582,3559.4,3558.8,3.62683]
[1733253475030,0.6761598,3559.3,3558.8,3.62683]
[1733253475348,0.26015398,3559.2,3558.8,3.62683]
[1733253475510,3.53271365,3559.8,3558.8,3.62683]
[1733253475730,0.55,3559.6,3558.8,0.8169]
[1733253475929,0.67626989,3559.5,3558.8,0.8169]
[1733253476131,0.67626989,3559.4,3558.8,0.8169]
[1733253476326,0.2601038,3559.3,3558.8,3.62682]
[1733253476570,0.2601038,3559.2,3558.8,0.8169]
[1733253476730,0.2601038,3559.1,3558.8,0.8169]
[1733253477076,0.2601038,3559.0,3558.9,2.80985]
[1733253477257,0.25992137,3559.3,3559.1,2.80967]
[1733253477429,0.25989289,3559.2,3558.8,3.62677]
[1733253477631,0.55,3559.6,3558.8,3.62677]
[1733253477870,0.25987828,3559.5,3558.8,3.62677]
[1733253478047,0.25987828,3559.4,3558.8,3.62677]
[1733253478243,0.25987828,3559.3,3558.8,3.62677]
[1733253478579,0.55,3559.1,3558.4,0.7662]
[1733253478732,0.80976918,3559.1,3558.4,3.57643]
[1733253478929,0.55,3559.3,3558.4,3.57643]
[1733253479145,0.55,3559.1,3558.4,3.57643]
[1733253479435,0.80972051,3559.1,3558.4,0.7662]
[1733253479636,0.55,3559.2,3558.4,0.7662]
[1733253479832,0.55,3559.0,3558.4,0.7662]
[1733253480053,0.55,3559.0,3558.5,2.81017]
[1733253480240,0.80972051,3559.1,3558.4,0.7662]
[1733253480674,0.25972051,3559.0,3558.4,0.7662]
[1733253480884,0.55,3559.4,3558.7,2.81001]
[1733253480885,0.25972051,3559.3,3558.7,2.81001]
[1733253481175,0.55,3559.4,3558.7,2.81001]
[1733253481176,0.25972051,3559.2,3558.7,2.81001]
[1733253481472,0.55,3559.2,3558.4,0.7662]
[1733253481773,0.55,3558.9,3558.4,0.7662]
[1733253481944,3.06942051,3559.1,3557.5,0.7949]
[1733253481945,0.55,3558.8,3557.5,0.7949]
[1733253482147,0.80972051,3559.0,3557.5,0.7949]
[1733253482148,0.55,3558.6,3557.5,0.7949]
[1733253482468,0.55,3558.6,3557.6,2.81087]
[1733253482672,0.25972051,3558.8,3557.5,0.7949]
[1733253482673,0.55,3558.4,3557.5,0.7949]
[1733253483030,0.55,3558.6,3557.6,2.81087]
[1733253483235,0.55,3558.4,3557.6,2.81087]
[1733253483434,0.55,3558.4,3557.5,0.7949]
[1733253483668,0.55,3558.7,3557.8,2.81071]
[1733253483873,0.809471,3558.7,3557.8,2.81071]
[1733253484034,0.259471,3558.7,3557.8,0.8312]
[1733253484234,0.259471,3558.9,3558.0,2.81056]
[1733253484508,0.259471,3559.0,3558.2,2.81034]
[1733253484780,2.85253122,3559.6,3557.9,3.17894312]
[1733253484781,2.80976,3559.1,3557.9,3.17894312]
[1733253484935,0.259471,3559.0,3557.8,0.8312]
[1733253485274,0.259471,3558.9,3557.9,2.81064]
[1733253485450,0.259471,3558.8,3557.8,0.8312]
[1733253485649,0.259471,3559.0,3558.2,2.81036]
[1733253485851,0.259471,3559.0,3558.5,0.8305]
[1733253486031,0.55,3559.1,3558.5,0.8305]
[1733253486231,0.259471,3559.0,3558.5,0.8305]
[1733253486430,0.259471,3558.9,3558.0,2.81054]
[1733253486632,0.259471,3559.0,3558.1,0.7587]
[1733253486873,0.259471,3558.9,3558.1,0.7587]
[1733253487076,0.55,3558.5,3557.7,0.7587]
[1733253487276,0.55,3558.3,3557.7,0.7587]
[1733253487665,0.55,3558.4,3557.7,0.7587]
[1733253487984,0.80960447,3558.4,3557.7,0.7587]
[1733253488320,0.55,3558.6,3557.7,0.7587]
[1733253488602,0.55,3558.4,3557.7,0.7587]
[1733253488988,2.81007,3558.7,3557.7,0.7587]
[1733253488989,0.55,3558.5,3557.7,0.7587]
[1733253489192,0.25968898,3558.4,3557.7,0.7587]
[1733253489378,0.55,3558.5,3557.7,0.7587]
[1733253489584,0.55,3558.3,3557.7,0.7587]
[1733253489772,0.55,3558.3,3557.7,3.56947]
[1733253489975,0.55,3558.6,3557.7,3.56947]
[1733253490197,0.55,3558.4,3557.7,3.56947]
[1733253490408,0.25977513,3558.3,3557.7,3.56947]
[1733253490570,0.55,3558.6,3557.7,3.56947]
[1733253490764,0.55,3558.4,3557.7,3.56947]
[1733253490964,0.25987475,3558.3,3557.7,3.56947]
[1733253491202,0.55,3558.6,3557.8,2.81068]
[1733253491365,0.25997263,3558.5,3557.8,2.81068]
[1733253491565,0.55,3558.3,3557.7,0.7587]
[1733253492067,0.25997748,3558.2,3557.7,0.7587]
[1733253492293,0.55,3558.5,3557.7,1.115657]
[1733253492505,0.26005235,3558.4,3557.7,1.115657]
[1733253492663,0.26005235,3558.3,3558.1,2.81048]
[1733253492860,0.26005235,3558.2,3558.1,2.81048]
[1733253493067,0.41596481,3558.7,3558.1,2.81048]
[1733253493262,0.67605957,3558.6,3558.1,2.81048]
[1733253493486,0.67605957,3558.5,3557.7,1.115657]
[1733253493692,0.29056792,3558.8,3557.7,1.115657]
[1733253493693,0.55,3558.3,3557.7,3.56947]
[1733253493880,0.26009476,3558.2,3557.7,3.56947]
[1733253494183,0.96611509,3558.6,3557.7,3.56947]
[1733253494379,0.55,3558.4,3557.7,3.56947]
[1733253494582,0.26013484,3558.3,3557.7,3.56947]
[1733253494912,0.26013484,3558.2,3557.7,3.56947]
[1733253495109,0.96611509,3558.6,3557.7,3.56947]
[1733253495266,0.67629757,3558.5,3557.8,2.81066]
[1733253495467,0.29056792,3558.8,3557.7,0.7587]
[1733253495468,1.22629757,3558.4,3557.7,3.56947]
[1733253495670,0.26018248,3558.3,3557.7,0.7587]
[1733253495885,0.26019626,3558.2,3557.9,2.81063]
[1733253496080,0.4163103,3558.5,3557.9,2.81063]
[1733253496305,0.26026511,3558.4,3558.0,2.81055]
[1733253496615,0.43329668,3559.2,3558.2,3.61834]
[1733253496918,1.1633148,3559.9,3558.2,3.61834]
[1733253496919,0.67677571,3559.1,3558.8,2.80989]
[1733253497119,0.26029835,3559.0,3558.8,2.80989]
[1733253497302,0.26029835,3558.9,3558.3,2.81033]
[1733253497478,0.26029835,3558.8,3558.6,2.81007]
[1733253497677,0.26029835,3558.7,3558.4,2.81023]
[1733253498015,0.26037234,3558.6,3558.2,0.808]
[1733253498223,0.41661347,3559.3,3557.8,0.8151]
[1733253498224,0.26037234,3558.5,3557.8,0.8151]
[1733253498384,0.26037234,3558.4,3557.8,0.8151]
[1733253498726,0.26037234,3558.3,3557.8,0.8151]
[1733253498908,0.43329668,3559.0,3557.8,0.8151]
[1733253498909,0.26039282,3558.2,3557.8,0.8151]
[1733253499108,0.26039282,3558.2,3557.0,2.81132]
[1733253499109,0.26039282,3558.1,3557.1,0.7985]
[1733253499286,0.81039282,3558.0,3557.1,0.7985]
[1733253499631,0.81039282,3558.0,3557.0,2.8113]
[1733253499632,0.55,3557.7,3557.0,2.8113]
[1733253499826,0.26039282,3557.6,3557.0,2.8113]
[1733253500034,0.96658638,3557.8,3557.0,2.8113]
[1733253500330,0.96658638,3557.8,3556.8,0.8108]
[1733253500331,0.55,3557.6,3556.9,2.81143]
[1733253500479,0.26027251,3557.5,3556.9,3.454816]
[1733253500794,0.96635128,3557.9,3556.9,3.454816]
[1733253501122,0.55,3557.7,3556.9,0.643386]
[1733253501321,0.26022136,3557.6,3556.8,0.8108]
[1733253501522,0.26022136,3557.5,3557.0,2.81135]
[1733253501822,3.36076,3557.8,3556.8,3.62228]
[1733253502038,0.55,3557.6,3556.8,3.62228]
[1733253502323,0.26015938,3557.5,3556.8,3.62228]
[1733253502627,3.77680337,3557.9,3556.8,3.984508]
[1733253502918,0.55,3557.7,3556.9,2.8114]
[1733253503129,0.26008782,3557.6,3556.9,2.8114]
[1733253503348,0.43348267,3558.4,3557.1,2.81126]
[1733253503517,0.55,3558.2,3557.1,2.81126]
[1733253503705,3.0,3558.5,3556.8,1.173028]
[1733253503706,3.36059,3558.0,3556.9,2.81143]
[1733253503907,0.67602793,3557.9,3557.0,0.3984458]
[1733253504128,0.26001209,3557.8,3557.1,2.81127]
[1733253504323,0.26001209,3557.7,3556.9,2.8114]
[1733253504514,2.81028,3558.4,3556.8,3.984538]
[1733253504515,3.36073,3557.8,3556.8,3.984538]
[1733253504710,0.55,3557.6,3556.8,0.8108]
[1733253505121,0.25986061,3557.5,3556.8,0.8108]
[1733253505336,0.25983004,3557.4,3556.8,0.8108]
[1733253505511,0.96587353,3557.9,3556.8,0.8108]
[1733253505512,0.41587353,3557.8,3556.8,0.8108]
[1733253505711,0.55,3557.6,3556.8,0.8108]
[1733253505914,0.25982471,3557.5,3556.8,0.8108]
[1733253506114,0.25982036,3557.4,3556.8,0.8108]
[1733253506345,0.55,3557.5,3556.4,3.5858]
[1733253506651,0.55,3557.3,3556.4,3.5858]
[1733253507013,0.55,3557.5,3556.4,3.5858]
[1733253507210,0.25980535,3557.4,3556.4,0.774]
[1733253507443,0.55,3557.3,3556.4,3.58581]
[1733253507744,0.55,3557.4,3556.5,2.81167]
[1733253508111,14.54313122,3558.0,3556.4,1.414282]
[1733253508112,0.55,3557.6,3556.4,1.414282]
[1733253508313,0.55,3557.4,3556.4,1.414282]
[1733253508552,0.55,3557.9,3556.9,2.81138]
[1733253508847,0.55,3557.7,3556.9,2.81138]
[1733253509055,0.25981889,3557.6,3556.9,3.092518]
[1733253509347,0.96587353,3557.9,3556.9,3.092518]
[1733253509552,0.25984311,3557.8,3556.9,3.092518]
[1733253509770,0.80984004,3557.7,3556.9,0.281138]
[1733253509934,0.25984004,3557.6,3556.9,2.8114]
[1733253510249,0.41574407,3558.0,3557.3,2.81111]
[1733253510421,0.25984274,3557.9,3557.4,2.81102]
[1733253510632,8.88,3558.1,3557.0,0.772]
[1733253510835,0.25985823,3558.0,3557.0,0.772]
[1733253511043,0.25985823,3557.9,3557.0,1.130359]
[1733253511248,0.25985823,3557.8,3557.0,1.130359]
[1733253511445,0.25985823,3557.7,3557.2,2.81119]
[1733253511648,0.41587299,3558.0,3557.2,2.81119]
[1733253511864,0.2599243,3557.9,3557.2,2.81119]
[1733253512080,0.2599243,3557.8,3557.2,2.81119]
[1733253512237,0.2599243,3557.7,3557.2,2.81119]
[1733253512567,0.41588946,3558.0,3557.2,2.81119]
[1733253512749,0.41588946,3558.0,3557.0,1.130359]
[1733253512750,0.25991105,3557.9,3557.0,1.130359]
[1733253512926,0.25991105,3557.8,3557.3,2.81111]
[1733253513128,0.41588946,3558.0,3557.3,2.81111]
[1733253513129,0.25991105,3557.7,3557.4,0.02810668]
[1733253513380,0.43306674,3558.8,3557.5,0.7858]
[1733253513539,2.81034,3558.3,3557.5,0.7858]
[1733253513738,2.81034,3558.3,3557.3,3.2051869]
[1733253513739,0.25993861,3558.2,3557.3,3.2051869]
[1733253513938,0.25993861,3558.1,3557.2,3.59096]
[1733253514180,0.25993861,3558.0,3557.2,0.7798]
[1733253514359,2.85253122,3558.6,3557.3,2.81108]
[1733253514360,0.25993861,3557.9,3557.3,2.81108]
[1733253514564,0.25993861,3557.8,3557.3,2.81108]
[1733253514840,0.55,3558.2,3557.5,2.81095]
[1733253515036,2.81019,3558.5,3557.2,0.7798]
[1733253515037,0.25988169,3558.1,3557.7,2.81074]
[1733253515352,0.25988169,3558.0,3557.9,2.81063]
[1733253515538,0.41581185,3558.6,3557.9,2.81063]
[1733253515734,0.29058053,3558.8,3557.7,0.281074]
[1733253515735,0.6757165,3558.5,3558.1,2.81044]
[1733253515939,0.25990465,3558.4,3558.2,2.81035]
[1733253516164,0.25990465,3558.4,3558.0,0.7919]
[1733253516165,0.41585509,3558.7,3558.4,2.81024]
[1733253516348,0.25993709,3558.6,3558.4,2.81024]
[1733253516569,0.41589528,3558.7,3558.4,0.281024]
[1733253516875,1.1633148,3559.5,3558.8,2.80992]
[1733253516876,0.41589528,3559.2,3558.8,2.80992]
[1733253517186,0.41589528,3559.2,3557.9,2.81061]
[1733253517187,0.6758056,3559.1,3557.8,0.7919]
[1733253517384,0.6758056,3559.0,3557.9,0.02809646]
[1733253517536,0.25991032,3558.9,3558.8,2.80993]
[1733253517879,0.25991032,3558.9,3558.8,3.60183]
[1733253518078,0.29116485,3559.7,3559.3,2.80954]
[1733253518251,0.67570867,3559.6,3559.4,2.80945]
[1733253518462,0.25988943,3559.5,3559.0,2.8097]
[1733253518660,0.25988943,3559.4,3558.9,2.80983]
[1733253518971,0.25988943,3559.3,3558.9,2.80983]
[1733253519298,0.25988943,3559.2,3559.0,2.80976]
[1733253519457,2.80892,3560.1,3559.0,2.80976]
[1733253519458,0.25988943,3559.1,3559.0,2.80976]
[1733253519780,0.41546851,3559.7,3559.0,2.80976]
[1733253519948,1.22512228,3559.6,3559.0,2.80976]
[1733253520149,0.55,3559.4,3559.0,2.80976]
[1733253520345,0.25965377,3559.3,3559.0,2.80976]
[1733253520692,0.96546851,3559.7,3558.8,3.60176]
[1733253520855,0.25954029,3559.6,3558.9,2.80981]
[1733253521049,0.55,3559.7,3558.9,2.80981]
[1733253521050,0.25954029,3559.5,3558.9,2.80981]
[1733253521252,0.25954029,3559.4,3558.9,2.80981]
[1733253521557,0.80954029,3559.3,3558.9,3.169981]
[1733253521758,0.80954029,3559.3,3558.9,0.360171]
[1733253521759,0.25954029,3559.2,3558.9,0.360171]
[1733253521985,0.55,3559.3,3558.3,2.81031]
[1733253522285,0.55,3559.1,3558.1,2.81046]
[1733253522441,0.2594814,3559.0,3558.1,2.81046]
[1733253522640,0.55,3558.8,3558.1,2.81046]
[1733253522889,0.25947043,3558.7,3557.9,0.776]
[1733253523182,0.55,3558.6,3557.9,0.776]
[1733253523394,0.55,3558.6,3558.1,2.81046]
[1733253523984,0.55,3558.9,3557.9,3.58661]
[1733253524183,0.55,3558.7,3557.9,0.776]
[1733253524405,0.55,3558.7,3558.0,2.81055]
[1733253524686,0.55,3558.9,3558.0,2.81055]
[1733253524904,0.25948456,3558.8,3558.0,2.81055]
[1733253525048,0.80948456,3558.7,3558.0,2.81055]
[1733253525257,0.55,3558.9,3558.0,2.81055]
[1733253525576,0.55,3558.7,3558.0,2.81055]
[1733253525757,0.55,3558.9,3558.0,2.81055]
[1733253525972,0.55,3558.7,3557.9,0.776]
[1733253526298,0.55,3558.5,3557.9,3.58664]
[1733253526483,0.55,3558.5,3557.9,0.776]
[1733253526685,0.80947267,3558.8,3557.9,0.776]
[1733253526896,0.25947267,3558.7,3558.0,2.81056]
[1733253527208,0.41546851,3559.1,3558.0,2.81056]
[1733253527209,0.25947267,3558.6,3558.5,2.81017]
[1733253527379,0.25951659,3559.0,3558.7,2.80996]
[1733253527574,3.9724848,3559.8,3558.7,2.80996]
[1733253527575,0.67499648,3559.5,3558.7,2.80996]
[1733253527891,0.25952797,3559.4,3558.7,2.80996]
[1733253528209,0.25952797,3559.3,3558.5,3.58511]
[1733253528510,0.41546851,3559.8,3558.5,1.133511]
[1733253528710,0.25940175,3559.7,3558.7,2.80994]
[1733253528858,0.55,3559.5,3558.5,0.775]
[1733253529064,0.55,3559.3,3558.8,2.80993]
[1733253529402,0.80940175,3559.3,3558.7,2.80996]
[1733253529608,0.55,3559.6,3558.5,0.775]
[1733253529758,0.25940175,3559.5,3559.1,2.80967]
[1733253529960,3.53274068,3560.2,3558.5,1.133518]
[1733253529961,0.25940175,3559.7,3558.8,2.80993]
[1733253530161,0.25940175,3559.6,3559.3,0.8112]
[1733253530361,0.25936927,3560.0,3559.3,0.8112]
[1733253530598,1.1633148,3560.8,3559.3,0.8112]
[1733253530599,0.25936927,3560.3,3559.7,2.80918]
[1733253530796,0.25936927,3560.3,3559.3,0.8112]
[1733253530797,0.04909303,3559.9,3559.8,2.8371884]
[1733253530999,0.25936927,3560.4,3559.9,0.7936]
[1733253531195,0.25936927,3560.6,3559.9,0.7936]
[1733253531402,0.2910762,3560.7,3559.9,0.7936]
[1733253531709,2.8580392,3560.6,3559.3,0.7962]